bitfinex/quotes_SOLUSD_20220130
["timestamp","ask_amount","ask_price","bid_price","bid_amount"]
[1643580471414,6.22823461,92.786,92.747,0.62643022]
[1643580472214,2.95669142,92.785,92.747,0.62643022]
[1643580474014,16.183,92.78,92.747,0.62643022]
[1643580474615,23.49632629,92.769,92.747,0.62643022]
[1643580475421,23.49632629,92.769,92.714,0.62665194]
[1643580477219,0.25,92.768,92.714,0.62665194]
[1643580478624,6.0,92.759,92.714,0.62665194]
[1643580480326,6.0,92.759,92.712,23.17721172]
[1643580481029,24.2666,92.768,92.712,23.17721172]
[1643580481457,23.49632629,92.769,92.712,23.17721172]
[1643580482753,0.25,92.768,92.712,23.17721172]
[1643580483255,0.25,92.768,92.713,0.25]
[1643580483455,23.49632629,92.769,92.713,0.25]
[1643580483656,0.25,92.768,92.72,16.18]
[1643580483855,16.181,92.79,92.72,16.18]
[1643580484055,6.0,92.78,92.72,16.18]
[1643580484254,6.0,92.78,92.721,0.25]
[1643580484455,6.0,92.78,92.73,1.0]
[1643580484656,6.0,92.78,92.721,108.25]
[1643580484657,21.78963881,92.798,92.75,16.175]
[1643580484955,2.39363389,92.81,92.75,12.71]
[1643580485155,2.39363389,92.81,92.751,24.5449]
[1643580485558,6.0,92.8,92.751,24.5449]
[1643580485956,0.25,92.809,92.751,24.5449]
[1643580485957,22.76110759,92.799,92.752,20.65719427]
[1643580486958,22.76110759,92.799,92.762,6.0]
[1643580487558,2.39363389,92.81,92.762,6.0]
[1643580488458,23.74465301,92.81,92.762,6.0]
[1643580489261,23.74465301,92.81,92.752,20.65719427]
[1643580489459,2.39363389,92.81,92.752,20.65719427]
[1643580489859,0.25,92.809,92.752,20.65719427]
[1643580490261,0.25,92.809,92.762,6.0]
[1643580491461,2.14363389,92.81,92.762,6.0]
[1643580491761,2.14363389,92.81,92.752,20.65719427]
[1643580496765,2.14363389,92.81,92.762,6.0]
[1643580498568,2.14363389,92.81,92.752,20.65719427]
[1643580499469,0.71765215,92.803,92.752,20.65719427]
[1643580502574,2.14363389,92.81,92.762,6.0]
[1643580502976,2.14363389,92.81,92.752,20.65719427]
[1643580503575,24.31470341,92.809,92.752,20.65719427]
[1643580503776,24.21,92.808,92.752,20.65719427]
[1643580513209,6.0,92.798,92.752,20.65719427]
[1643580515209,5.5,92.798,92.752,20.65719427]
[1643580517809,5.5,92.798,92.73,16.177]
[1643580518011,6.0,92.79,92.72,16.18]
[1643580518210,6.0,92.79,92.722,22.9999]
[1643580518410,6.0,92.787,92.722,22.9999]
[1643580518611,6.0,92.786,92.722,22.9999]
[1643580518810,16.182,92.78,92.722,22.9999]
[1643580519015,6.0,92.77,92.722,22.9999]
[1643580519211,23.33729972,92.769,92.722,22.9999]
[1643580519812,24.7228,92.768,92.722,22.9999]
[1643580520212,24.7228,92.768,92.691,1.1047174]
[1643580520414,24.7228,92.768,92.692,0.25]
[1643580520415,6.0,92.758,92.692,0.25]
[1643580520613,6.0,92.758,92.701,6.0]
[1643580521215,6.0,92.758,92.702,25.22000528]
[1643580521617,24.4821,92.757,92.703,22.7955]
[1643580524721,27.43879142,92.757,92.691,1.1047174]
[1643580524925,6.0,92.747,92.691,1.1047174]
[1643580525127,24.4707,92.746,92.691,1.1047174]
[1643580525722,6.38726118,92.745,92.692,26.17955926]
[1643580526729,2.44534852,92.74,92.692,26.17955926]
[1643580528530,2.44534852,92.74,92.691,1.1047174]
[1643580528931,18.63434852,92.74,92.691,1.1047174]
[1643580529530,18.63434852,92.74,92.692,18.56808735]
[1643580529728,23.33729972,92.729,92.692,18.56808735]
[1643580530531,23.33729972,92.729,92.691,1.1047174]
[1643580531731,22.83729972,92.729,92.692,22.34307626]
[1643580532130,22.83729972,92.729,92.691,1.1047174]
[1643580532931,22.7666,92.728,92.691,1.1047174]
[1643580533733,2.95669142,92.727,92.691,1.1047174]
[1643580533957,6.0,92.718,92.691,1.1047174]
[1643580534158,49.0,92.726,92.622,24.9026]
[1643580534359,108.0,92.716,92.622,24.9026]
[1643580534559,6.0,92.706,92.622,24.9026]
[1643580534755,16.198,92.7,92.623,21.0574359]
[1643580534955,21.24093252,92.699,92.623,21.0574359]
[1643580535357,6.0,92.689,92.624,0.25]
[1643580535656,2.95669142,92.698,92.689,2.69536377]
[1643580535860,21.24093252,92.699,92.689,2.69536377]
[1643580536056,27.24093252,92.699,92.624,0.25]
[1643580536265,27.24093252,92.699,92.64,16.194]
[1643580536457,27.24093252,92.699,92.632,6.0]
[1643580536458,27.24093252,92.699,92.641,24.083]
[1643580537259,27.24093252,92.699,92.642,29.73176683]
[1643580537860,27.24093252,92.699,92.643,0.25]
[1643580538762,21.24093252,92.699,92.643,0.25]
[1643580539160,21.24093252,92.699,92.642,29.73176683]
[1643580539361,23.7172,92.698,92.643,0.25]
[1643580540365,23.7172,92.698,92.65,16.193]
[1643580544372,31.743,92.72,92.643,108.0]
[1643580544569,31.743,92.72,92.653,6.0]
[1643580544570,15.55,92.72,92.653,6.0]
[1643580544772,2.44534852,92.74,92.655,108.0]
[1643580544972,22.9534,92.746,92.66,6.0]
[1643580545168,22.9534,92.746,92.665,6.0]
[1643580545371,18.02031401,92.745,92.666,0.94375344]
[1643580545570,18.02031401,92.745,92.68,16.187]
[1643580545772,18.02031401,92.745,92.681,23.19364547]
[1643580545971,18.02031401,92.745,92.69,6.0]
[1643580546172,18.02031401,92.745,92.691,6.0]
[1643580546571,18.02031401,92.745,92.692,0.25]
[1643580546771,22.9534,92.746,92.692,0.25]
[1643580546974,22.9534,92.746,92.692,108.25]
[1643580547172,22.9534,92.746,92.7,6.0]
[1643580547376,22.9534,92.746,92.702,6.0]
[1643580547572,22.9534,92.746,92.71,6.0]
[1643580547976,22.9534,92.746,92.711,7.4818748]
[1643580548175,23.522,92.748,92.711,7.4818748]
[1643580548377,23.522,92.748,92.721,6.0]
[1643580548574,18.82590836,92.759,92.721,6.0]
[1643580549884,18.82590836,92.759,92.721,15.21]
[1643580550083,16.184,92.77,92.721,9.21]
[1643580551077,20.44891506,92.769,92.721,9.21]
[1643580551280,20.44891506,92.769,92.711,7.4818748]
[1643580551478,20.44891506,92.769,92.721,6.0]
[1643580551679,20.44891506,92.769,92.711,7.4818748]
[1643580551978,20.44891506,92.769,92.721,6.0]
[1643580553981,20.44891506,92.769,92.722,6.0]
[1643580554581,15.9903,92.78,92.723,6.0]
[1643580554984,15.9903,92.78,92.73,6.0]
[1643580555182,16.181,92.79,92.73,6.0]
[1643580555382,24.2058,92.799,92.734,6.0]
[1643580555383,1.49276805,92.793,92.734,6.0]
[1643580555584,18.63603645,92.789,92.735,23.19364547]
[1643580559292,23.7055,92.788,92.735,23.19364547]
[1643580559688,6.0,92.778,92.735,23.19364547]
[1643580561714,6.0,92.778,92.731,24.0819]
[1643580562314,6.0,92.778,92.71,16.181]
[1643580562516,24.3696,92.777,92.72,6.0]
[1643580562916,24.3696,92.777,92.721,6.0]
[1643580565521,24.3696,92.777,92.73,6.0]
[1643580565721,24.3696,92.777,92.731,0.97782461]
[1643580566121,24.3696,92.777,92.732,6.0]
[1643580566523,18.63603645,92.789,92.732,6.0]
[1643580566728,23.1258,92.788,92.732,6.0]
[1643580567826,23.1258,92.788,92.72,16.18]
[1643580568927,23.1258,92.788,92.721,27.87414923]
[1643580570431,23.1258,92.788,92.731,6.0]
[1643580572031,23.1258,92.788,92.722,24.0879]
[1643580572330,24.61856805,92.788,92.722,24.0879]
[1643580572532,1.49276805,92.787,92.722,24.0879]
[1643580573231,1.49276805,92.786,92.722,24.0879]
[1643580573932,1.49276805,92.779,92.722,24.0879]
[1643580574333,1.49276805,92.78,92.722,24.0879]
[1643580574533,6.78844328,92.768,92.683,1.47450328]
[1643580574833,23.496,92.767,92.695,24.4788]
[1643580575033,23.496,92.767,92.705,6.0]
[1643580575736,23.496,92.767,92.706,53.60083547]
[1643580576335,6.0,92.757,92.706,24.529]
[1643580576537,23.2769,92.756,92.706,24.529]
[1643580577036,6.0,92.746,92.674,1.47450328]
[1643580577235,6.0,92.746,92.672,1.47450328]
[1643580577437,18.58883727,92.745,92.665,30.0335516]
[1643580577637,6.0,92.735,92.665,30.0335516]
[1643580577837,16.191,92.73,92.665,30.0335516]
[1643580578036,6.83564246,92.729,92.665,30.0335516]
[1643580578837,6.83564246,92.729,92.67,16.189]
[1643580579638,6.0,92.719,92.664,23.3117]
[1643580580638,6.83564246,92.729,92.664,23.3117]
[1643580580639,6.83564246,92.729,92.674,6.0]
[1643580581039,6.83564246,92.729,92.675,6.25]
[1643580581839,6.83564246,92.729,92.675,0.25]
[1643580582041,6.83564246,92.729,92.67,16.189]
[1643580582839,6.83564246,92.729,92.665,30.01538883]
[1643580583642,6.83564246,92.729,92.675,6.0]
[1643580584847,6.83564246,92.729,92.67,16.189]
[1643580586865,22.7621,92.728,92.68,6.0]
[1643580587665,6.83564246,92.729,92.681,0.66013144]
[1643580588165,6.83564246,92.729,92.69,6.0]
[1643580588366,6.83564246,92.729,92.681,0.66013144]
[1643580590068,6.83564246,92.729,92.69,16.185]
[1643580590468,6.83564246,92.729,92.7,28.10896594]
[1643580591469,24.381,92.753,92.7,28.10896594]
[1643580591671,24.381,92.753,92.7,44.29296594]
[1643580591869,24.381,92.753,92.7,28.10896594]
[1643580592071,24.381,92.753,92.701,6.0]
[1643580592471,24.0752476,92.752,92.701,6.0]
[1643580594075,23.2857,92.769,92.701,6.0]
[1643580594276,1.49276805,92.786,92.71,6.0]
[1643580594675,1.95384167,92.79,92.712,6.0]
[1643580594874,1.95384167,92.79,92.713,22.9665]
[1643580595073,6.0,92.78,92.723,6.0]
[1643580595274,24.03186204,92.789,92.723,6.0]
[1643580595474,23.8284,92.788,92.724,29.0662]
[1643580595676,6.0,92.779,92.724,29.0662]
[1643580595874,23.8284,92.788,92.724,29.0662]
[1643580596076,23.8284,92.788,92.731,22.10896594]
[1643580597076,24.03186204,92.789,92.731,22.10896594]
[1643580597277,24.03186204,92.789,92.74,16.177]
[1643580597477,24.03186204,92.789,92.741,6.0]
[1643580597677,24.03186204,92.789,92.731,22.10896594]
[1643580598078,6.0,92.779,92.731,22.10896594]
[1643580598681,6.0,92.778,92.731,22.10896594]
[1643580599681,24.7486,92.788,92.731,22.10896594]
[1643580602681,6.0,92.778,92.731,22.10896594]
[1643580603383,1.49276805,92.787,92.731,22.10896594]
[1643580603582,24.7486,92.788,92.731,22.10896594]
[1643580604385,1.49276805,92.787,92.731,22.10896594]
[1643580604582,6.0,92.777,92.731,22.10896594]
[1643580604783,24.7624,92.776,92.731,22.10896594]
[1643580604982,1.39261769,92.775,92.731,22.10896594]
[1643580606386,24.7624,92.776,92.731,22.10896594]
[1643580607087,6.0,92.766,92.731,22.10896594]
[1643580607487,19.75682559,92.765,92.731,22.10896594]
[1643580609591,1.49276805,92.788,92.731,22.10896594]
[1643580609788,23.6204,92.787,92.731,22.10896594]
[1643580609990,19.62760972,92.79,92.731,22.10896594]
[1643580610392,18.13484167,92.79,92.732,23.4474]
[1643580611593,6.0,92.78,92.732,23.4474]
[1643580612894,6.0,92.78,92.731,22.10896594]
[1643580613495,6.0,92.777,92.731,22.10896594]
[1643580613693,3.41592749,92.776,92.731,22.10896594]
[1643580615698,6.0,92.766,92.731,22.10896594]
[1643580615898,3.41592749,92.776,92.72,16.18]
[1643580616706,3.41592749,92.776,92.681,1.47450328]
[1643580616707,49.0,92.775,92.681,1.47450328]
[1643580616903,49.0,92.775,92.65,1.74447815]
[1643580616904,1.49276805,92.762,92.65,1.74447815]
[1643580617098,1.49276805,92.745,92.613,429.16508171]
[1643580617305,16.202,92.71,92.616,1.48022129]
[1643580617498,28.432,92.71,92.613,429.16508171]
[1643580617705,1.49276805,92.694,92.613,429.16508171]
[1643580617898,1.49276805,92.694,92.585,1.48022129]
[1643580617899,54.021,92.69,92.585,1.48022129]
[1643580618099,15.55,92.68,92.576,1.48022129]
[1643580618298,15.55,92.68,92.552,0.1]
[1643580618299,1.49276805,92.678,92.57,1.48022129]
[1643580618499,16.21,92.65,92.562,1.48022129]
[1643580618699,15.55,92.64,92.553,1.48022129]
[1643580618900,15.55,92.64,92.492,77.454]
[1643580618901,15.55,92.64,92.543,0.1]
[1643580619100,15.55,92.64,92.492,77.454]
[1643580619101,4.83749594,92.639,92.531,1.48022129]
[1643580619399,16.214,92.62,92.5,16.218]
[1643580619602,16.214,92.62,92.501,0.1]
[1643580619603,26.174,92.62,92.501,0.1]
[1643580619803,215.92,92.61,92.484,1.48022129]
[1643580620002,54.071,92.59,92.484,1.48022129]
[1643580620226,15.55,92.58,92.479,42.65730573]
[1643580620429,15.55,92.58,92.496,10.17634018]
[1643580620628,6.0,92.57,92.497,0.1]
[1643580620834,0.38803647,92.569,92.497,0.1]
[1643580621731,0.38803647,92.569,92.481,6.0]
[1643580622431,0.38803647,92.569,92.491,44.14488143]
[1643580622627,0.38803647,92.569,92.501,6.0]
[1643580622829,0.38803647,92.569,92.502,0.25]
[1643580623828,0.38803647,92.569,92.51,16.216]
[1643580624028,0.38803647,92.569,92.511,8.78876448]
[1643580624427,0.38803647,92.569,92.511,8.68876448]
[1643580626432,0.38803647,92.569,92.502,0.1]
[1643580626634,13.85803647,92.569,92.5,6.0]
[1643580627034,6.0,92.559,92.5,6.0]
[1643580627438,6.0,92.559,92.501,35.9311747]
[1643580627637,2.30327198,92.549,92.502,0.1]
[1643580630040,2.30327198,92.549,92.5,6.0]
[1643580631037,2.30327198,92.549,92.509,6.0]
[1643580631239,2.30327198,92.549,92.501,0.1]
[1643580631438,2.30327198,92.549,92.5,6.0]
[1643580632041,2.30327198,92.549,92.492,6.0]
[1643580632240,2.30327198,92.549,92.494,44.46475256]
[1643580632438,2.30327198,92.549,92.495,0.1]
[1643580632641,2.30327198,92.549,92.504,6.0]
[1643580632941,2.30327198,92.549,92.481,0.1]
[1643580633139,2.30327198,92.549,92.481,0.25]
[1643580633544,6.0,92.539,92.481,44.09338951]
[1643580633741,6.0,92.539,92.47,15.821]
[1643580634143,6.0,92.53,92.47,15.821]
[1643580634643,0.96308211,92.529,92.471,39.66147907]
[1643580635043,0.96308211,92.529,92.481,6.0]
[1643580635445,0.96308211,92.529,92.471,39.66147907]
[1643580635645,0.96308211,92.529,92.472,0.25]
[1643580635945,0.96308211,92.529,92.481,6.0]
[1643580636349,15.55,92.54,92.482,0.25]
[1643580636545,15.55,92.54,92.484,6.0]
[1643580637347,2.62296086,92.539,92.485,13.17216684]
[1643580638145,2.62296086,92.539,92.49,16.219]
[1643580639149,15.55,92.54,92.49,16.219]
[1643580639950,15.55,92.54,92.491,0.25]
[1643580640150,2.80812743,92.539,92.491,0.25]
[1643580641150,15.55,92.54,92.491,0.25]
[1643580642452,15.55,92.57,92.491,0.25]
[1643580642653,6.0,92.56,92.49,16.219]
[1643580642856,6.0,92.56,92.491,0.25]
[1643580643055,6.0,92.56,92.5,16.217]
[1643580643253,15.55,92.57,92.51,6.0]
[1643580643753,15.55,92.57,92.511,6.25]
[1643580644455,15.55,92.57,92.521,13.17216684]
[1643580644854,15.55,92.57,92.522,0.25]
[1643580645455,15.55,92.57,92.531,6.0]
[1643580645654,15.55,92.57,92.522,0.25]
[1643580646455,15.55,92.57,92.521,13.17216684]
[1643580646854,15.55,92.57,92.5,16.216]
[1643580647053,6.0,92.56,92.47,55.54022129]
[1643580647254,30.79,92.56,92.47,16.222]
[1643580647453,6.0,92.559,92.482,1.48022129]
[1643580647653,6.0,92.559,92.479,1.48022129]
[1643580647854,6.0,92.55,92.48,41.33076989]
[1643580648156,6.0,92.548,92.48,41.33076989]
[1643580649655,6.0,92.548,92.48,42.81099118]
[1643580649854,6.0,92.548,92.48,41.33076989]
[1643580650261,6.0,92.548,92.48,42.81099118]
[1643580650457,6.0,92.54,92.477,1.48022129]
[1643580650657,6.0,92.54,92.46,16.225]
[1643580650658,21.55,92.54,92.476,1.48022129]
[1643580650955,21.55,92.54,92.473,1.48022129]
[1643580651157,6.0,92.538,92.471,1.48022129]
[1643580651356,6.0,92.538,92.472,41.95357904]
[1643580653067,6.0,92.538,92.472,43.43380033]
[1643580653262,6.0,92.53,92.472,43.43380033]
[1643580653561,6.0,92.53,92.472,41.95357904]
[1643580655160,1.28169138,92.529,92.472,40.95357904]
[1643580655560,6.0,92.519,92.472,40.95357904]
[1643580655761,3.29785234,92.519,92.472,40.95357904]
[1643580657365,3.29785234,92.519,92.462,1.48022129]
[1643580657970,3.29785234,92.519,92.461,1.48022129]
[1643580658170,3.29785234,92.519,92.462,1.48022129]
[1643580658371,3.29785234,92.519,92.463,39.68165986]
[1643580658771,3.29785234,92.519,92.464,108.0]
[1643580658969,3.29785234,92.519,92.465,1.48022129]
[1643580659171,3.29785234,92.519,92.463,41.16188115]
[1643580659371,3.29785234,92.519,92.465,1.48022129]
[1643580659971,3.29785234,92.519,92.466,1.48022129]
[1643580660171,3.29785234,92.519,92.465,1.48022129]
[1643580660973,3.29785234,92.519,92.463,39.68165986]
[1643580661995,3.29785234,92.519,92.463,38.68165986]
[1643580662195,3.29785234,92.519,92.454,1.48022129]
[1643580662596,6.0,92.518,92.454,1.48022129]
[1643580662996,6.0,92.518,92.453,1.48022129]
[1643580663396,6.0,92.518,92.452,1.48022129]
[1643580664599,6.0,92.518,92.45,1.48022129]
[1643580664800,6.0,92.518,92.454,6.0]
[1643580665000,6.0,92.518,92.461,6.0]
[1643580666001,6.0,92.518,92.449,1.48022129]
[1643580666203,31.779,92.52,92.449,1.48022129]
[1643580666404,31.779,92.52,92.448,1.48022129]
[1643580666602,6.0,92.51,92.448,1.48022129]
[1643580666801,3.98466271,92.509,92.449,35.84153189]
[1643580667006,3.98466271,92.509,92.446,1.48022129]
[1643580667202,3.98466271,92.509,92.444,1.48022129]
[1643580667402,3.98466271,92.509,92.441,1.48022129]
[1643580667602,15.55,92.5,92.441,1.48022129]
[1643580667804,15.55,92.5,92.439,1.48022129]
[1643580668006,15.55,92.5,92.44,45.39763544]
[1643580669604,15.55,92.5,92.434,1.48022129]
[1643580669803,27.10739142,92.499,92.427,1.48022129]
[1643580670004,27.10739142,92.499,92.424,1.48022129]
[1643580670203,2.95669142,92.498,92.417,1.48022129]
[1643580670405,2.95669142,92.498,92.416,1.48022129]
[1643580670603,2.95669142,92.498,92.417,32.86088032]
[1643580670804,16.238,92.48,92.417,32.86088032]
[1643580671004,15.55,92.48,92.417,32.86088032]
[1643580671204,15.55,92.48,92.427,1.48022129]
[1643580671408,15.55,92.48,92.417,32.86088032]
[1643580671409,15.55,92.48,92.426,1.48022129]
[1643580671607,15.55,92.48,92.422,1.48022129]
[1643580671806,15.55,92.48,92.42,1.48022129]
[1643580672006,31.786,92.48,92.42,1.48022129]
[1643580672205,31.786,92.48,92.4,16.235]
[1643580672206,31.786,92.48,92.421,1.48022129]
[1643580673306,31.786,92.48,92.422,1.48022129]
[1643580673508,6.0,92.47,92.422,1.48022129]
[1643580673909,6.0,92.47,92.423,1.73022129]
[1643580674111,6.0,92.47,92.429,6.0]
[1643580674308,6.0,92.47,92.425,1.48022129]
[1643580674509,6.0,92.47,92.419,38.81838708]
[1643580674709,6.0,92.47,92.419,37.33816579]
[1643580676511,6.0,92.47,92.419,38.81838708]
[1643580677112,6.0,92.47,92.414,1.48022129]
[1643580677311,21.55,92.47,92.413,1.48022129]
[1643580677511,21.55,92.47,92.39,16.235]
[1643580677512,21.55,92.47,92.412,1.48022129]
[1643580677812,15.55,92.47,92.413,1.48022129]
[1643580678112,15.55,92.47,92.414,45.3311184]
[1643580678812,15.55,92.47,92.415,1.73022129]
[1643580679013,15.55,92.47,92.416,1.48022129]
[1643580679512,15.55,92.47,92.417,1.48022129]
[1643580679713,15.55,92.47,92.416,1.48022129]
[1643580680413,15.55,92.47,92.417,1.48022129]
[1643580680614,15.55,92.47,92.419,1.48022129]
[1643580681015,15.55,92.47,92.415,0.25]
[1643580681217,3.98466271,92.459,92.415,0.25]
[1643580681715,3.98466271,92.459,92.414,43.85089711]
[1643580684818,6.0,92.449,92.414,43.85089711]
[1643580685219,6.0,92.449,92.411,1.48022129]
[1643580685418,6.0,92.449,92.409,1.48022129]
[1643580685620,6.0,92.449,92.407,1.48022129]
[1643580685817,6.0,92.449,92.39,16.237]
[1643580685818,6.0,92.449,92.408,1.48022129]
[1643580686217,3.98466271,92.459,92.409,39.33039205]
[1643580687025,3.98466271,92.459,92.409,37.85017076]
[1643580687523,3.98466271,92.459,92.411,1.48022129]
[1643580687923,3.98466271,92.459,92.412,1.73022129]
[1643580688122,15.55,92.47,92.412,1.73022129]
[1643580688123,15.55,92.47,92.412,1.48022129]
[1643580688324,15.55,92.47,92.409,37.85017076]
[1643580688325,15.55,92.47,92.41,1.48022129]
[1643580688526,15.55,92.47,92.42,6.0]
[1643580689224,15.55,92.47,92.42,22.232]
[1643580689225,5.16316724,92.469,92.42,22.232]
[1643580689423,5.16316724,92.469,92.42,16.232]
[1643580690431,5.16316724,92.469,92.411,1.48022129]
[1643580690631,5.16316724,92.469,92.409,37.85017076]
[1643580690632,5.16316724,92.469,92.41,1.48022129]
[1643580690830,15.55,92.47,92.419,6.0]
[1643580691031,15.55,92.47,92.417,1.48022129]
[1643580691230,15.55,92.47,92.412,1.48022129]
[1643580691430,15.55,92.47,92.411,1.48022129]
[1643580691632,15.55,92.47,92.413,1.48022129]
[1643580691830,4.56566146,92.469,92.413,1.48022129]
[1643580692032,4.56566146,92.469,92.412,1.48022129]
[1643580692631,4.56566146,92.469,92.411,1.48022129]
[1643580692832,4.56566146,92.469,92.41,16.234]
[1643580693031,4.56566146,92.469,92.411,1.48022129]
[1643580693232,4.56566146,92.469,92.412,1.48022129]
[1643580693433,4.56566146,92.469,92.409,37.85017076]
[1643580693633,4.56566146,92.469,92.409,39.33039205]
[1643580693833,4.56566146,92.469,92.409,37.85017076]
[1643580694031,4.56566146,92.469,92.409,39.33039205]
[1643580694633,24.7192,92.488,92.41,16.234]
[1643580694839,1.49276805,92.519,92.419,6.0]
[1643580695034,15.55,92.52,92.427,6.0]
[1643580695258,15.55,92.52,92.428,1.48022129]
[1643580695458,15.55,92.52,92.43,1.48022129]
[1643580695658,29.66441364,92.519,92.44,6.0]
[1643580696057,29.66441364,92.519,92.443,6.0]
[1643580696259,29.66441364,92.519,92.444,34.65112433]
[1643580696663,29.66441364,92.519,92.444,34.40112433]
[1643580698261,6.0,92.509,92.444,34.40112433]
[1643580700768,6.0,92.509,92.445,0.25]
[1643580701566,6.0,92.509,92.444,34.40112433]
[1643580701766,6.0,92.509,92.445,0.25]
[1643580702166,6.0,92.509,92.45,16.227]
[1643580703368,6.0,92.509,92.451,0.25]
[1643580703769,6.0,92.509,92.45,16.227]
[1643580711784,6.0,92.509,92.444,34.40112433]
[1643580712183,31.78,92.51,92.444,34.40112433]
[1643580714613,6.0,92.5,92.444,34.40112433]
[1643580714813,0.38474045,92.499,92.444,34.40112433]
[1643580717916,0.38474045,92.499,92.431,1.48022129]
[1643580718119,108.0,92.489,92.431,1.48022129]
[1643580718317,108.0,92.489,92.384,47.966]
[1643580718318,108.0,92.487,92.412,1.48022129]
[1643580718717,108.0,92.487,92.404,1.62301537]
[1643580718918,2.95669142,92.486,92.404,1.62301537]
[1643580719218,16.236,92.48,92.404,0.14279408]
[1643580719417,15.55,92.47,92.404,0.14279408]
[1643580719617,24.23775628,92.469,92.404,0.14279408]
[1643580719817,24.23775628,92.469,92.396,1.12301537]
[1643580720018,24.23775628,92.469,92.404,0.28558816]
[1643580721017,16.24,92.46,92.404,0.28558816]
[1643580721618,15.55,92.45,92.404,0.28558816]
[1643580721820,4.37329781,92.449,92.404,0.28558816]
[1643580724821,15.55,92.45,92.404,0.28558816]
[1643580725722,4.71452543,92.449,92.404,0.28558816]
[1643580726327,49.0,92.446,92.381,0.35944952]
[1643580726523,49.0,92.446,92.3,194.37]
[1643580726524,6.0,92.439,92.34,15.9891]
[1643580726724,15.55,92.43,92.333,23.3416]
[1643580726923,15.55,92.43,92.324,24.4975]
[1643580727122,24.2483,92.429,92.324,24.4975]
[1643580727324,27.20499142,92.429,92.31,2.98213169]
[1643580727525,49.0,92.409,92.284,4.50362236]
[1643580727724,15.55,92.4,92.274,2.9843943]
[1643580727932,209.92,92.4,92.27,16.259]
[1643580728124,1.14,92.376,92.249,2.9843943]
[1643580728326,194.37,92.37,92.247,2.9843943]
[1643580728527,16.261,92.36,92.249,38.43162688]
[1643580728726,15.55,92.35,92.24,54.197]
[1643580728930,28.03,92.35,92.24,54.197]
[1643580729527,16.262,92.34,92.24,54.197]
[1643580729726,15.55,92.33,92.241,33.59316198]
[1643580729927,28.95,92.33,92.247,6.0]
[1643580730126,28.95,92.33,92.278,2.50467349]
[1643580730526,6.0,92.32,92.268,2.50467349]
[1643580731129,6.0,92.33,92.268,2.50467349]
[1643580731333,15.55,92.32,92.305,0.00281733]
[1643580731528,32.17639889,92.32,92.305,0.00281733]
[1643580732830,26.12,92.32,92.305,0.00281733]
[1643580733029,15.55,92.32,92.305,0.00281733]
[1643580734229,21.60639889,92.32,92.305,0.00281733]
[1643580734428,15.55,92.32,92.305,0.00281733]
[1643580735428,6.0,92.31,92.305,0.00281733]
[1643580737029,15.55,92.33,92.305,0.00281733]
[1643580737231,6.0,92.32,92.305,0.00281733]
[1643580737430,21.55,92.32,92.305,0.00281733]
[1643580739239,24.334,92.319,92.305,0.00281733]
[1643580741038,35.314,92.319,92.305,0.00281733]
[1643580741445,2.95669142,92.318,92.305,0.00281733]
[1643580741637,49.0,92.316,92.153,0.1]
[1643580741840,49.0,92.316,92.141,108.1]
[1643580742036,154.92009919,92.315,92.162,2.50890603]
[1643580742241,194.37,92.28,92.162,2.50890603]
[1643580742435,108.0,92.278,92.141,0.1]
[1643580742637,1.14,92.266,92.141,0.1]
[1643580742841,24.621,92.265,92.198,0.00606794]
[1643580743039,6.0,92.255,92.198,0.00606794]
[1643580743238,15.55,92.24,92.198,0.00606794]
[1643580743438,47.5407,92.239,92.198,0.00606794]